bitfinex-derivatives/quotes_BTCF0:USTF0_20250703
["timestamp","ask_amount","ask_price","bid_price","bid_amount"]
[1751506606530,0.185272,109080.0,109070.0,1.23932527]
[1751506608734,0.185272,109080.0,109070.0,2.08140527]
[1751506609833,0.185272,109080.0,109070.0,1.51177943]
[1751506610131,0.185272,109080.0,109070.0,2.11140527]
[1751506610531,0.185272,109080.0,109070.0,2.0748788]
[1751506610934,0.185272,109080.0,109070.0,2.11141643]
[1751506611331,0.185272,109080.0,109070.0,2.0748788]
[1751506612239,0.185272,109080.0,109070.0,1.2427988]
[1751506612740,0.002,109080.0,109070.0,1.2427988]
[1751506613040,0.185272,109080.0,109070.0,1.4827988]
[1751506613730,0.68452368,109080.0,109070.0,0.18173736]
[1751506614036,0.77952368,109080.0,109070.0,0.18173736]
[1751506614236,0.77952368,109080.0,109070.0,0.00313736]
[1751506614742,0.8435968,109080.0,109070.0,0.00313736]
[1751506615036,1.2769568,109080.0,109070.0,0.00309304]
[1751506615239,0.1833224,109050.0,109040.0,0.49326218]
[1751506615536,0.43294824,109050.0,109040.0,0.28521108]
[1751506615734,0.52444824,109050.0,109040.0,0.20282708]
[1751506616838,0.52544824,109050.0,109040.0,0.20982708]
[1751506617035,0.52644824,109050.0,109040.0,0.20982708]
[1751506617635,0.5995441,109050.0,109040.0,0.20982708]
[1751506626045,0.34991826,109050.0,109040.0,0.20982708]
[1751506626244,0.5995441,109050.0,109040.0,0.20982708]
[1751506627534,0.28861826,109050.0,109040.0,0.59945292]
[1751506627740,0.25841826,109050.0,109040.0,0.79295292]
[1751506627940,0.5080441,109050.0,109040.0,0.37142708]
[1751506628141,0.5682441,109050.0,109040.0,0.33982708]
[1751506628446,0.5997441,109050.0,109040.0,0.20982708]
[1751506639852,0.5997441,109050.0,109040.0,0.24072708]
[1751506642452,0.5997441,109050.0,109040.0,0.27727858]
[1751506643652,0.5997441,109050.0,109040.0,0.30837858]
[1751506645359,0.5997441,109050.0,109040.0,0.36322548]
[1751506646158,0.5997441,109050.0,109040.0,0.30837858]
[1751506647359,0.25841826,109050.0,109040.0,0.94800442]
[1751506647659,0.34513011,109070.0,109060.0,0.1833056]
[1751506647854,0.29026,109070.0,109060.0,0.46960381]
[1751506648056,0.29026,109070.0,109060.0,0.31447797]
[1751506648760,0.29126,109070.0,109060.0,0.31447797]
[1751506648961,0.29226,109070.0,109060.0,0.31747797]
[1751506649260,0.54188584,109070.0,109060.0,0.31747797]
[1751506651358,0.54188584,109070.0,109060.0,0.2808056]
[1751506655462,0.57318584,109070.0,109060.0,0.2808056]
[1751506662463,0.60638584,109070.0,109060.0,0.2808056]
[1751506662860,0.60638584,109070.0,109060.0,0.2493056]
[1751506668777,0.2777348,109070.0,109060.0,0.2493056]
[1751506668976,0.2777348,109070.0,109060.0,0.2181056]
[1751506673879,0.2777348,109070.0,109060.0,0.2481056]
[1751506674881,0.52736064,109070.0,109060.0,0.2181056]
[1751506675180,0.55746064,109070.0,109060.0,0.2181056]
[1751506675376,0.55746064,109070.0,109060.0,0.25477797]
[1751506677282,0.3078348,109070.0,109060.0,0.25477797]
[1751506678379,0.3078348,109070.0,109060.0,0.73300381]
[1751506678380,0.0173067,109070.0,109060.0,0.73300381]
[1751506678573,0.002,109070.0,109060.0,2.23560381]
[1751506678777,0.38562884,109090.0,109080.0,0.183272]
[1751506678977,0.38562884,109090.0,109080.0,0.21992636]
[1751506679378,0.38562884,109090.0,109080.0,0.183272]
[1751506679881,0.38562884,109090.0,109080.0,0.19236621]
[1751506680083,0.63525468,109090.0,109080.0,0.19236621]
[1751506680282,0.63525468,109090.0,109080.0,0.22902057]
[1751506680580,0.63725468,109090.0,109080.0,0.22902057]
[1751506681076,0.63925468,109090.0,109080.0,0.19336621]
[1751506681783,0.63925468,109090.0,109080.0,0.23002057]
[1751506682084,0.63925468,109090.0,109080.0,0.19336621]
[1751506683485,0.63925468,109090.0,109080.0,0.19333589]
[1751506683683,0.05092534,109090.0,109080.0,0.43389784]
[1751506683985,0.48380638,109090.0,109080.0,0.184272]
[1751506684192,0.51540638,109090.0,109080.0,0.184272]
[1751506684586,0.51540638,109090.0,109080.0,0.001]
[1751506691284,0.76503222,109090.0,109080.0,0.001]
[1751506692190,0.51540638,109090.0,109080.0,0.001]
[1751506692492,0.75004638,109090.0,109080.0,0.001]
[1751506694792,0.80491649,109090.0,109080.0,0.001]
[1751506695292,0.75004638,109090.0,109080.0,0.001]
[1751506697798,0.80491649,109090.0,109080.0,0.001]
[1751506710304,0.1832887,109070.0,109060.0,0.07708628]
[1751506710605,0.1833055,109060.0,109050.0,0.70764383]
[1751506710900,0.43293134,109060.0,109050.0,0.74946362]
[1751506712304,0.43393134,109060.0,109050.0,0.75446362]
[1751506712604,0.43193134,109060.0,109050.0,0.75446362]
[1751506713506,0.43293134,109060.0,109050.0,0.75646362]
[1751506715005,0.1833055,109060.0,109050.0,0.75646362]
[1751506715300,0.1833055,109060.0,109050.0,0.70145506]
[1751506721308,0.1833055,109060.0,109050.0,0.9510809]
[1751506721707,0.1833055,109060.0,109050.0,1.5210809]
[1751506723408,0.1833055,109060.0,109050.0,1.1410809]
[1751506725312,0.1833055,109060.0,109050.0,1.19608946]
[1751506729614,0.1853056,109060.0,109050.0,1.52608946]
[1751506730314,0.1853056,109060.0,109050.0,1.4894351]
[1751506731616,0.1853056,109060.0,109050.0,1.1594351]
[1751506734222,0.002,109060.0,109050.0,1.1594351]
[1751506734419,0.002,109060.0,109050.0,1.3380351]
[1751506734718,0.002,109060.0,109050.0,1.6480351]
[1751506735915,0.002,109060.0,109050.0,1.66477473]
[1751506735916,0.1853055,109060.0,109050.0,1.66477473]
[1751506739118,0.002,109060.0,109050.0,1.91446348]
[1751506739517,0.1832788,109080.0,109070.0,0.1832888]
[1751506739825,0.2139552,109090.0,109080.0,0.183272]
[1751506740121,0.85019736,109100.0,109090.0,0.1832552]
[1751506740315,0.88339736,109100.0,109090.0,0.43294395]
[1751506740524,0.82852725,109100.0,109090.0,0.43294395]
[1751506740718,0.63481868,109100.0,109090.0,0.43294395]
[1751506741019,0.63481868,109100.0,109090.0,0.1832552]
[1751506741524,0.88450743,109100.0,109090.0,0.1832552]
[1751506741924,0.88850743,109100.0,109090.0,0.1832552]
[1751506742224,0.88850743,109100.0,109090.0,0.19234079]
[1751506742629,0.63881868,109100.0,109090.0,0.19234079]
[1751506743223,0.64181868,109100.0,109090.0,0.19334079]
[1751506743529,0.39212993,109100.0,109090.0,0.19334079]
[1751506744430,0.23620473,109100.0,109090.0,0.49290031]
[1751506744625,0.23620473,109100.0,109090.0,0.55470031]
[1751506745325,0.23620473,109100.0,109090.0,0.30514079]
[1751506745518,0.23620473,109100.0,109090.0,0.52460031]
[1751506745718,0.23620473,109100.0,109090.0,0.27504079]
[1751506745918,0.26810473,109100.0,109090.0,0.27504079]
[1751506747324,0.26810473,109100.0,109090.0,0.22504079]
[1751506748029,0.51766425,109100.0,109090.0,0.19334079]
[1751506748222,0.51766425,109100.0,109090.0,0.1842551]
[1751506748622,0.51766425,109100.0,109090.0,0.001]
[1751506749731,1.35814425,109100.0,109090.0,0.001]
[1751506755441,1.41301436,109100.0,109090.0,0.001]
[1751506756941,0.183272,109080.0,109070.0,0.24586695]
[1751506757148,0.43283152,109080.0,109070.0,0.24586695]
[1751506757447,0.49613152,109080.0,109070.0,0.24586695]
[1751506758245,0.49713152,109080.0,109070.0,0.20204505]
[1751506758447,1.33757152,109080.0,109070.0,0.01876915]
[1751506758646,1.33757152,109080.0,109070.0,0.20205795]
[1751506759147,1.33857152,109080.0,109070.0,0.20305795]
[1751506759347,1.33857152,109080.0,109070.0,0.01976915]
[1751506759543,1.33857152,109080.0,109070.0,0.20305795]
[1751506765350,1.33857152,109080.0,109070.0,0.23395795]
[1751506765650,0.49813152,109080.0,109070.0,0.26565795]
[1751506765850,1.33853152,109080.0,109070.0,0.26565795]
[1751506774864,1.33853152,109080.0,109070.0,0.29795795]
[1751506776673,1.33853152,109080.0,109070.0,0.33460227]
[1751506777764,0.49813152,109080.0,109070.0,0.33460227]
[1751506777964,1.33841152,109080.0,109070.0,0.33460227]
[1751506781767,1.33841152,109080.0,109070.0,0.5842703]
[1751506781768,1.58818806,109080.0,109070.0,0.5842703]
[1751506786469,1.58818806,109080.0,109070.0,0.5202703]
[1751506789068,1.33852003,109080.0,109070.0,0.5202703]
[1751506789771,1.33852003,109080.0,109070.0,0.27060227]
[1751506789965,1.33852003,109080.0,109070.0,0.5202703]
[1751506797074,1.33852003,109080.0,109070.0,0.27060227]
[1751506797275,1.33852003,109080.0,109070.0,0.5202703]
[1751506799074,1.58818806,109080.0,109070.0,0.5202703]
[1751506799779,1.58818806,109080.0,109070.0,0.27060227]
[1751506799970,1.58818806,109080.0,109070.0,0.5202703]
[1751506800171,1.58818806,109080.0,109070.0,0.23970227]
[1751506801575,1.58818806,109080.0,109070.0,0.4893703]
[1751506804672,0.49824003,109080.0,109070.0,0.4893703]
[1751506804871,0.248572,109080.0,109070.0,0.4893703]
[1751506805068,0.185272,109080.0,109070.0,1.38920481]
[1751506805272,0.002,109080.0,109070.0,1.38920481]
[1751506805574,0.002,109080.0,109070.0,1.58920481]
[1751506805977,0.002,109080.0,109070.0,1.33953678]
[1751506806572,0.1852719,109080.0,109070.0,1.2645703]
[1751506807171,0.002,109080.0,109070.0,2.55584049]
[1751506807371,0.002,109080.0,109070.0,2.59242246]
[1751506808273,0.002,109080.0,109070.0,2.77102246]
[1751506810278,0.002,109080.0,109070.0,2.71605598]
[1751506811779,0.185272,109080.0,109070.0,2.71605598]
[1751506811981,0.185272,109080.0,109070.0,2.46638795]
[1751506812378,0.185272,109080.0,109070.0,2.27638795]
[1751506812682,0.185272,109080.0,109070.0,2.09302795]
[1751506813582,0.185272,109080.0,109070.0,2.34269598]
[1751506814484,0.002,109080.0,109070.0,2.34269598]
[1751506814782,0.002,109080.0,109070.0,2.09269598]
[1751506814983,0.002,109080.0,109070.0,2.34269598]
[1751506815383,0.002,109080.0,109070.0,2.36108049]
[1751506816378,0.002,109080.0,109070.0,2.62762403]
[1751506816584,0.002,109080.0,109070.0,2.59108049]
[1751506825787,0.1852719,109080.0,109070.0,2.59108049]
[1751506827092,0.1852719,109080.0,109070.0,2.12141246]
[1751506827487,0.002,109080.0,109070.0,2.12141246]
[1751506827792,0.002,109080.0,109070.0,2.36108049]
[1751506827994,0.002,109080.0,109070.0,2.60108049]
[1751506828782,0.002,109080.0,109070.0,2.37108049]
[1751506828987,0.002,109080.0,109070.0,2.59108049]
[1751506830795,0.002,109080.0,109070.0,2.33108049]
[1751506830994,0.002,109080.0,109070.0,2.36108049]
[1751506831795,0.002,109080.0,109070.0,2.60108049]
[1751506833791,0.002,109080.0,109070.0,2.60098618]
[1751506834095,0.22930633,109100.0,109090.0,0.1832551]
[1751506834293,0.29560633,109100.0,109090.0,1.39899511]
[1751506835289,0.29560633,109100.0,109090.0,1.43557127]
[1751506835493,0.29960633,109100.0,109090.0,1.43657127]
[1751506836098,0.11635373,109100.0,109090.0,1.43657127]
[1751506836597,0.30259213,109100.0,109090.0,1.49143638]
[1751506839299,0.30259213,109100.0,109090.0,1.43657127]
[1751506841003,0.55226016,109100.0,109090.0,1.43657127]
[1751506844606,0.30259213,109100.0,109090.0,1.46827127]
[1751506845603,0.55226016,109100.0,109090.0,1.46827127]
[1751506846305,0.30259213,109100.0,109090.0,1.46827127]
[1751506849703,0.30259213,109100.0,109090.0,1.64687127]
[1751506850904,0.30259213,109100.0,109090.0,3.04687127]
[1751506852410,0.55226016,109100.0,109090.0,3.04687127]
[1751506853712,0.55226016,109100.0,109090.0,2.79720324]
[1751506854105,0.55226016,109100.0,109090.0,3.04517127]
[1751506855410,0.55226016,109100.0,109090.0,3.00859511]
[1751506855704,0.55226016,109100.0,109090.0,2.82999511]
[1751506857105,0.80192819,109100.0,109090.0,0.34092708]
[1751506857304,0.80192819,109100.0,109090.0,1.03996708]
[1751506857801,0.80192819,109100.0,109090.0,1.28963511]
[1751506858205,0.80192819,109100.0,109090.0,1.03996708]
[1751506859205,0.55226016,109100.0,109090.0,1.28963511]
[1751506860811,0.53700643,109100.0,109090.0,1.28963511]
[1751506863914,0.2873384,109100.0,109090.0,1.28963511]
[1751506864113,0.53700643,109100.0,109090.0,1.28963511]
[1751506865308,0.53700643,109100.0,109090.0,1.32622147]
[1751506865508,0.53700643,109100.0,109090.0,1.38108658]
[1751506870619,0.53700643,109100.0,109090.0,1.46108658]
[1751506871918,0.53700643,109100.0,109090.0,1.42450022]
[1751506876521,0.53700643,109100.0,109090.0,1.45720022]
[1751506877821,0.2873384,109100.0,109090.0,1.45720022]
[1751506878024,0.53700643,109100.0,109090.0,1.45720022]
[1751506882423,0.53700643,109100.0,109090.0,1.12753219]
[1751506882622,0.78667446,109100.0,109090.0,1.09459219]
[1751506884227,0.78667446,109100.0,109090.0,1.13120001]
[1751506884618,0.78667446,109100.0,109090.0,0.29240001]
[1751506885825,0.78667446,109100.0,109090.0,0.54206804]
[1751506889024,0.53700643,109100.0,109090.0,0.54206804]
[1751506889226,0.53700643,109100.0,109090.0,0.57296804]
[1751506889426,0.53700643,109100.0,109090.0,0.60546804]
[1751506894232,0.2873384,109100.0,109090.0,0.60546804]
[1751506894533,0.53700643,109100.0,109090.0,0.60546804]
[1751506895437,0.53700643,109100.0,109090.0,0.55060293]
[1751506899233,0.50620643,109100.0,109090.0,0.55060293]
[1751506900935,0.50620643,109100.0,109090.0,0.3009349]
[1751506901141,0.50620643,109100.0,109090.0,0.55060293]
[1751506901843,0.75587446,109100.0,109090.0,0.55060293]
[1751506902143,0.78657446,109100.0,109090.0,0.55060293]
[1751506902339,0.78657446,109100.0,109090.0,0.3009349]
[1751506902539,0.78657446,109100.0,109090.0,0.20092708]
[1751506902741,0.78657446,109100.0,109090.0,0.45059511]
[1751506903340,0.78657446,109100.0,109090.0,0.48720293]
[1751506905343,0.78657446,109100.0,109090.0,0.54206804]
[1751506907138,1.87476249,109100.0,109090.0,0.01767198]
[1751506907442,2.05809049,109100.0,109090.0,0.01167198]
[1751506907841,2.1129606,109100.0,109090.0,0.01167198]
[1751506908242,1.9296326,109100.0,109090.0,0.01167198]
[1751506908443,2.05809049,109100.0,109090.0,0.01167198]
[1751506908741,1.80842246,109100.0,109090.0,0.01167198]
[1751506914746,1.62509446,109100.0,109090.0,0.01167198]
[1751506918252,1.62509446,109100.0,109090.0,0.19492708]
[1751506918456,1.1257584,109100.0,109090.0,0.44459511]
[1751506918657,1.37542643,109100.0,109090.0,0.50789511]
[1751506920658,1.62509446,109100.0,109090.0,0.50789511]
[1751506921756,1.62509446,109100.0,109090.0,0.25822708]
[1751506921757,1.37533437,109100.0,109090.0,0.25822708]
[1751506927163,1.37533437,109100.0,109090.0,0.01167198]
[1751506930262,1.55866237,109100.0,109090.0,0.01167198]
[1751506930470,1.61353248,109100.0,109090.0,0.01167198]
[1751506931368,1.61353248,109100.0,109090.0,0.001]
[1751506935759,1.43020448,109100.0,109090.0,0.001]
[1751506937473,1.66396448,109100.0,109090.0,0.001]
[1751506945370,1.60909437,109100.0,109090.0,0.001]
[1751506945872,1.85882946,109100.0,109090.0,0.001]
[1751506953372,0.68954946,109100.0,109090.0,0.1842549]
[1751506953572,0.68954946,109100.0,109090.0,0.2455549]
[1751506953573,1.52794946,109100.0,109090.0,0.2455549]
[1751506953873,1.58288084,109100.0,109090.0,0.2781549]
[1751506954377,1.61368084,109100.0,109090.0,0.2781549]
[1751506956578,1.61368084,109100.0,109090.0,0.0949]
[1751506956776,1.61368084,109100.0,109090.0,0.2781549]
[1751506960081,1.61368084,109100.0,109090.0,0.0949]
[1751506961581,1.61368084,109100.0,109090.0,0.2781549]
[1751506962582,1.11436978,109100.0,109090.0,0.2781549]
[1751506962782,1.61368084,109100.0,109090.0,0.2781549]
[1751506963077,0.77528084,109100.0,109090.0,0.2781549]
[1751506963278,1.61364084,109100.0,109090.0,0.2781549]
[1751506963582,1.58284084,109100.0,109090.0,0.2781549]
[1751506965784,1.61324084,109100.0,109090.0,0.2781549]
[1751506969889,1.61324084,109100.0,109090.0,0.0949]
[1751506970082,1.61324084,109100.0,109090.0,0.0623]
[1751506970284,1.64624084,109100.0,109090.0,0.0623]
[1751506971889,1.67794084,109100.0,109090.0,0.0623]
[1751506974694,1.67794084,109100.0,109090.0,0.031]
[1751506975091,1.61324084,109100.0,109090.0,0.2142549]
[1751506975291,1.61324084,109100.0,109090.0,0.2792549]
[1751506975988,1.36358531,109100.0,109090.0,0.2792549]
[1751506976187,1.11392978,109100.0,109090.0,0.2792549]
[1751506976392,1.61324084,109100.0,109090.0,0.2792549]
[1751506977394,1.61324084,109100.0,109090.0,0.096]
[1751506978093,1.61324084,109100.0,109090.0,0.2792549]
[1751506979096,1.61324084,109100.0,109090.0,0.0637]
[1751506979297,1.64364084,109100.0,109090.0,0.0637]
[1751506980696,1.67374084,109100.0,109090.0,0.0637]
[1751506984498,1.67374084,109100.0,109090.0,0.031]
[1751506985699,1.67374084,109100.0,109090.0,0.001]
[1751506986099,1.61880946,109100.0,109090.0,0.001]
[1751506986608,1.61880946,109100.0,109090.0,0.1842549]
[1751506987101,1.61880946,109100.0,109090.0,0.001]
[1751506993008,1.86846499,109100.0,109090.0,0.001]
[1751506998018,1.94174606,109100.0,109090.0,0.001]
[1751506999411,1.86846499,109100.0,109090.0,0.001]
[1751507000205,1.94174606,109100.0,109090.0,0.001]
[1751507000406,1.86846499,109100.0,109090.0,0.001]
[1751507005617,1.94174606,109100.0,109090.0,0.001]
[1751507011917,1.86846499,109100.0,109090.0,0.001]
[1751507015622,1.94174606,109100.0,109090.0,0.001]
[1751507020528,1.86846499,109100.0,109090.0,0.001]
[1751507021422,1.1194984,109100.0,109090.0,0.001]
[1751507021628,2.10178499,109100.0,109090.0,0.001]
[1751507021920,2.17509136,109100.0,109090.0,0.001]
[1751507022426,2.10178499,109100.0,109090.0,0.001]
[1751507023425,2.19338633,109100.0,109090.0,0.001]
[1751507025726,2.17513398,109100.0,109090.0,0.001]
[1751507031137,2.10178499,109100.0,109090.0,0.001]
[1751507033137,1.3528184,109100.0,109090.0,0.001]
[1751507033331,2.10178499,109100.0,109090.0,0.001]
[1751507036040,2.10166499,109100.0,109090.0,0.001]
[1751507040442,0.1832549,109090.0,109080.0,0.0968]
[1751507040652,0.0916407,109080.0,109060.0,0.10827759]
[1751507040940,0.0916407,109080.0,109070.0,0.095]
[1751507040941,1.50906183,109080.0,109070.0,0.095]
[1751507041146,0.1832885,109070.0,109060.0,0.05341364]
[1751507041347,0.1832885,109070.0,109060.0,0.08123767]
[1751507041646,0.2705994,109070.0,109060.0,0.05013767]
[1751507041948,0.5360794,109070.0,109060.0,0.05013767]
[1751507042348,1.04442282,109070.0,109060.0,0.05013767]
[1751507042746,1.04542282,109070.0,109060.0,0.05213767]
[1751507043150,1.04542282,109070.0,109060.0,0.05513767]
[1751507043451,1.04542282,109070.0,109060.0,0.02183767]
[1751507043843,1.04642282,109070.0,109060.0,0.02183767]
[1751507044445,1.04642282,109070.0,109060.0,0.01983767]
[1751507044750,1.04542282,109070.0,109060.0,0.01783767]
[1751507044949,1.04642282,109070.0,109060.0,0.01883767]
[1751507045351,1.29607835,109070.0,109060.0,0.002]
[1751507049053,1.04642282,109070.0,109060.0,0.002]
[1751507052655,1.29607835,109070.0,109060.0,0.002]
[1751507053359,1.04642282,109070.0,109060.0,0.002]
[1751507053752,1.88438282,109070.0,109060.0,0.002]
[1751507053951,1.88338282,109070.0,109060.0,0.001]
[1751507054151,1.88538282,109070.0,109060.0,0.002]
[1751507054757,1.88638282,109070.0,109060.0,0.001]
[1751507058365,2.13603835,109070.0,109060.0,0.001]
[1751507058755,2.13607835,109070.0,109060.0,0.001]
[1751507059359,0.81474282,109070.0,109060.0,0.001]
[1751507059551,1.88642282,109070.0,109060.0,0.0324]
[1751507059956,1.88642282,109070.0,109060.0,0.064]
[1751507062766,1.88642282,109070.0,109060.0,0.001]
[1751507062959,2.13607835,109070.0,109060.0,0.001]
[1751507065768,2.15441644,109070.0,109060.0,0.001]
[1751507066170,2.08106745,109070.0,109060.0,0.001]
[1751507066469,2.15441644,109070.0,109060.0,0.001]
[1751507069175,2.15441644,109070.0,109060.0,0.01487122]
[1751507070568,2.18671644,109070.0,109060.0,0.01487122]
[1751507070872,2.18671644,109070.0,109060.0,0.001]
[1751507071471,2.11336745,109070.0,109060.0,0.01487219]
[1751507071873,2.18666473,109070.0,109060.0,0.01487219]
[1751507072375,2.11336745,109070.0,109060.0,0.01487219]
[1751507072772,2.11336745,109070.0,109060.0,0.01487543]
[1751507075070,2.20496879,109070.0,109060.0,0.001]
[1751507075672,2.27831699,109070.0,109060.0,0.001]
[1751507075873,2.18671565,109070.0,109060.0,0.001]
[1751507076069,2.18667565,109070.0,109060.0,0.001]
[1751507077678,2.18667565,109070.0,109060.0,0.01488175]
[1751507078075,1.93702012,109070.0,109060.0,0.01488175]
[1751507078878,1.93702012,109070.0,109060.0,0.01485529]
[1751507079078,1.93702012,109070.0,109060.0,0.001]
[1751507079379,2.18667565,109070.0,109060.0,0.001]
[1751507081180,1.93702012,109070.0,109060.0,0.001]
[1751507085081,1.93702012,109070.0,109060.0,0.01483837]
[1751507089384,0.86538012,109070.0,109060.0,0.01483837]
[1751507089577,0.2596367,109070.0,109060.0,0.3256939]
[1751507089782,0.49096315,109070.0,109060.0,0.0938]
[1751507090685,0.44526243,109070.0,109060.0,0.0938]
[1751507091482,1.28314243,109070.0,109060.0,0.0938]
[1751507091787,1.28324556,109070.0,109060.0,0.0938]
[1751507099497,1.31524556,109070.0,109060.0,0.0938]
[1751507100895,1.31524556,109070.0,109060.0,0.0622]
[1751507101392,1.37754556,109070.0,109060.0,0.0622]
[1751507102001,1.34704556,109070.0,109060.0,0.0622]
[1751507102294,1.31524556,109070.0,109060.0,0.0948]
[1751507102897,1.30592716,109070.0,109060.0,0.0948]
[1751507103199,1.27392716,109070.0,109060.0,0.0948]
[1751507104504,0.43604716,109070.0,109060.0,0.0948]
[1751507104802,1.30704716,109070.0,109060.0,0.0948]
[1751507105102,1.33984716,109070.0,109060.0,0.0948]
[1751507105302,1.33984716,109070.0,109060.0,0.0622]
[1751507105805,1.40404622,109070.0,109060.0,0.0622]
[1751507108701,1.43554622,109070.0,109060.0,0.0622]
[1751507111209,1.43554622,109070.0,109060.0,0.0311]
[1751507112301,1.68530488,109070.0,109060.0,0.001]
[1751507112502,0.86583396,109070.0,109060.0,0.01465322]
[1751507112708,0.8496753,109070.0,109060.0,0.01465322]
[1751507113006,1.66902316,109070.0,109060.0,0.001]
[1751507113508,1.66902316,109070.0,109060.0,0.01465227]
[1751507113711,1.6140871,109070.0,109060.0,0.01465227]
[1751507114610,1.6140871,109070.0,109060.0,0.01466292]
[1751507115812,1.66903879,109070.0,109060.0,0.01466292]
[1751507117713,1.66903879,109070.0,109060.0,0.01469829]
[1751507119914,1.91886425,109070.0,109060.0,0.01469829]
[1751507127113,0.83832431,109070.0,109060.0,0.01469829]
[1751507127307,0.52423225,109070.0,109060.0,0.0635]
[1751507127507,1.36195225,109070.0,109060.0,0.0953]
[1751507135828,0.52423225,109070.0,109060.0,0.0953]
[1751507136126,1.36191225,109070.0,109060.0,0.0953]
[1751507139128,0.27444019,109070.0,109060.0,0.2786053]
[1751507139331,0.52423225,109070.0,109060.0,0.34509206]
[1751507140428,0.1862885,109070.0,109060.0,0.80563051]
[1751507140829,0.43608056,109070.0,109060.0,0.55583845]
[1751507142225,0.43608056,109070.0,109060.0,0.52839736]
[1751507142428,0.43608056,109070.0,109060.0,0.55583845]
[1751507143235,0.43608056,109070.0,109060.0,0.52839736]
[1751507150244,0.43608056,109070.0,109060.0,0.001]
[1751507150542,0.74867262,109070.0,109060.0,0.001]
[1751507150842,0.78167262,109070.0,109060.0,0.001]
[1751507151731,0.53188474,109070.0,109060.0,0.001]
[1751507155241,0.58683643,109070.0,109060.0,0.001]
[1751507155442,0.53188474,109070.0,109060.0,0.001]
[1751507155649,0.58683643,109070.0,109060.0,0.001]
[1751507155946,0.53188474,109070.0,109060.0,0.001]
[1751507156851,0.53188474,109070.0,109060.0,0.01465912]
[1751507157047,0.60523294,109070.0,109060.0,0.01465912]
[1751507160753,0.62022965,109070.0,109060.0,0.01465912]
[1751507165149,0.62022965,109070.0,109060.0,0.001]
[1751507165850,0.60182191,109070.0,109060.0,0.001]
[1751507166049,0.60182191,109070.0,109060.0,0.01469555]
[1751507166251,0.60182191,109070.0,109060.0,0.001]
[1751507172862,1.67278191,109070.0,109060.0,0.001]
[1751507173763,1.92257775,109070.0,109060.0,0.001]
[1751507174565,1.86763729,109070.0,109060.0,0.01470227]
[1751507175668,1.86763729,109070.0,109060.0,0.0148499]
[1751507176865,1.94098549,109070.0,109060.0,0.001]
[1751507195784,1.95923863,109070.0,109060.0,0.001]
[1751507196681,0.79247863,109070.0,109060.0,0.001]
[1751507196884,1.52196125,109070.0,109060.0,0.11015723]
[1751507197287,1.77175729,109070.0,109060.0,0.11015723]
[1751507197487,1.52196125,109070.0,109060.0,0.11015723]
[1751507197990,1.77175729,109070.0,109060.0,0.11015723]
[1751507199491,1.77175729,109070.0,109060.0,0.0963]
[1751507200686,0.70087729,109070.0,109060.0,0.0963]
[1751507200889,0.25625409,109070.0,109060.0,0.34609604]
[1751507201080,0.25625409,109070.0,109060.0,0.52940134]
[1751507201081,0.26879275,109070.0,109060.0,0.52940134]
[1751507201890,0.45208125,109070.0,109060.0,0.52940134]
[1751507207996,0.45208125,109070.0,109060.0,0.2796053]
[1751507208295,0.45208125,109070.0,109060.0,0.52940134]
[1751507208891,0.45208125,109070.0,109060.0,0.2796053]
[1751507209097,0.45208125,109070.0,109060.0,0.0963]
[1751507212998,0.45208125,109070.0,109060.0,0.2796053]
[1751507215601,0.45208125,109070.0,109060.0,0.0963]
[1751507215801,0.48448125,109070.0,109060.0,0.0963]
[1751507216803,0.51468125,109070.0,109060.0,0.063]
[1751507217004,0.54768125,109070.0,109060.0,0.063]
[1751507218105,0.54768125,109070.0,109060.0,0.2463053]
[1751507218705,0.29788521,109070.0,109060.0,0.2463053]
[1751507219104,0.54768125,109070.0,109060.0,0.2463053]
[1751507222103,0.51468125,109070.0,109060.0,0.49610134]
[1751507223803,0.51468125,109070.0,109060.0,0.52760134]
[1751507228213,0.51468125,109070.0,109060.0,0.55503643]
[1751507228416,0.26488521,109070.0,109060.0,0.80483247]
[1751507228712,0.20228521,109070.0,109060.0,0.93140844]
[1751507229707,0.20228521,109070.0,109060.0,0.94800931]
[1751507230915,0.45208125,109070.0,109060.0,0.94800931]
[1751507231315,0.45208125,109070.0,109060.0,0.60821327]
[1751507231716,0.48528125,109070.0,109060.0,0.60821327]
[1751507231911,0.48528125,109070.0,109060.0,0.51471327]
[1751507232217,0.54838125,109070.0,109060.0,0.51471327]
[1751507234318,0.54838125,109070.0,109060.0,0.08161193]
[1751507234521,0.79817729,109070.0,109060.0,0.26491723]
[1751507234721,0.79817729,109070.0,109060.0,0.08161193]
[1751507234914,0.54838125,109070.0,109060.0,0.04503596]
[1751507235920,0.54838125,109070.0,109060.0,0.22834126]
[1751507237616,0.79817729,109070.0,109060.0,0.04503596]
[1751507237817,1.63509729,109070.0,109060.0,0.04503596]
[1751507240123,1.38530125,109070.0,109060.0,0.04503596]
[1751507243625,1.38530125,109070.0,109060.0,0.04502079]
[1751507245925,1.38530125,109070.0,109060.0,0.01760087]
[1751507249829,1.63509729,109070.0,109060.0,0.01760087]
[1751507255938,1.63509729,109070.0,109060.0,0.04502079]
[1751507257135,1.63509729,109070.0,109060.0,0.01760087]
[1751507281057,1.69006617,109070.0,109060.0,0.01760087]
[1751507283358,1.67506946,109070.0,109060.0,0.01760087]
[1751507287159,1.67506946,109070.0,109060.0,0.001]
[1751507287357,1.67506946,109070.0,109060.0,0.01465916]
[1751507287558,1.62010058,109070.0,109060.0,0.01465916]
[1751507287765,1.62010058,109070.0,109060.0,0.0146595]
[1751507287965,1.69340773,109070.0,109060.0,0.0146595]
[1751507288163,1.62010058,109070.0,109060.0,0.0146595]
[1751507289264,1.67509258,109070.0,109060.0,0.0146595]
[1751507292371,1.67509258,109070.0,109060.0,0.001]
[1751507296072,1.62010058,109070.0,109060.0,0.001]
[1751507296272,0.78318058,109070.0,109060.0,0.001]
[1751507296468,0.85648773,109070.0,109060.0,0.01470868]
[1751507297469,1.92628773,109070.0,109060.0,0.01470868]
[1751507300773,1.85298058,109070.0,109060.0,0.01470868]
[1751507305271,1.85298058,109070.0,109060.0,0.001]
[1751507305471,1.92628773,109070.0,109060.0,0.001]
[1751507305871,1.90793487,109070.0,109060.0,0.001]
[1751507315082,1.85298058,109070.0,109060.0,0.001]
[1751507315381,1.85298058,109070.0,109060.0,0.01473359]
[1751507316482,1.78960058,109070.0,109060.0,0.01473359]
[1751507316678,0.72008058,109070.0,109060.0,0.01473359]
[1751507316875,0.52528915,109070.0,109060.0,0.10863359]
[1751507317079,1.32832915,109070.0,109060.0,0.34469604]
[1751507318083,1.32832915,109070.0,109060.0,0.0949]
[1751507318785,0.49208915,109070.0,109060.0,0.52800134]